Cogmind - Beta 9.4 @@@ ROGUE MODE // 2020.03.21 @ 00:34:08 Player: Trione Result: Destroyed by as-92209 with Assembled Heavy Rifle Performance ------------- Evolutions (0) 0 Regions Visited (2) 400 Robots Destroyed (24) 120 Value Destroyed (329) 329 Prototype IDs (0) 0 Alien Tech Used (0) 0 Bonus (54) 54 TOTAL SCORE: 903 Bonus ------- Follower Combat Kills 67 Friendly Fire -13 Cogmind --------- Core Integrity 0/250 Matter 129/300 Energy 265/265 System Corruption 0% Temperature Cool (124) Movement Treading (180) Ox1 Location -10/Mines Parts ------- > --- POWER (1) -------- Improved Ion Engine > --- PROPULSION (2) --- Light Treads Light Treads > --- UTILITY (2) ------ High-capacity Storage Unit High-capacity Storage Unit > --- WEAPON (2) ------- Light Cannon Light Cannon > --- INVENTORY (20) --- Light Nuclear Core Compact Wheel Compact Wheel Compact Wheel High-capacity Storage Unit High-capacity Storage Unit Core Shielding Core Shielding Core Shielding Light Armor Plating Light Armor Plating Grenade Launcher Grenade Launcher Grenade Launcher Mining Claw Peak State ------------ > --- POWER ------------ Improved Ion Engine > --- PROPULSION ------- Wheel Compact Wheel > --- UTILITY ---------- High-capacity Storage Unit High-capacity Storage Unit > --- WEAPON ----------- Assault Rifle Light Cannon > --- INVENTORY -------- Light Nuclear Core Light Treads Light Treads Compact Wheel Compact Wheel Compact Wheel High-capacity Storage Unit High-capacity Storage Unit Core Shielding Core Shielding Core Shielding Light Armor Plating Light Armor Plating Light Cannon Grenade Launcher Grenade Launcher Grenade Launcher Mining Claw [Rating: 10] Favorites ----------- Power Light Ion Engine Engine Light Ion Engine Propulsion Compact Wheel Treads Light Treads Wheel Compact Wheel Utility High-capacity Storage Unit Storage High-capacity Storage Unit Weapon Assault Rifle Ballistic Gun Assault Rifle Ballistic Cannon Light Cannon Launcher Grenade Launcher Build | -11 -10 -10 ------- Run | Scr Mat Min Slots Evolved . | . . . Power . | . . . Propulsion . | . . . Utility . | . . . Weapon . | . . . Parts Attached 19 | 7 3 9 Power 2 | 1 . 1 Engine 2 | 1 . 1 Core . | . . . Reactor . | . . . Propulsion 4 | 2 . 2 Treads 2 | . . 2 Leg . | . . . Wheel 2 | 2 . . Hover . | . . . Flight . | . . . Utility 4 | 2 2 . Device . | . . . Storage 4 | 2 2 . Processor . | . . . Hackware . | . . . Protection . | . . . Artifact . | . . . Weapon 9 | 2 1 6 Energy Gun . | . . . Energy Cannon . | . . . Ballistic Gun 5 | 2 1 2 Ballistic Cannon 2 | . . 2 Launcher 2 | . . 2 Special Weapon . | . . . Impact Weapon . | . . . Slashing Weapon . | . . . Piercing Weapon . | . . . Special Melee Weapon . | . . . Unidentified Prototypes . | . . . Parts Lost 6 | . 1 5 Power 1 | . . 1 Propulsion 2 | . . 2 Utility . | . . . Weapon 3 | . 1 2 Highest Loss Streak 4 | . 1 4 Average Slot Usage (%) 98 | . 100 96 Engine 13 | . 14 10 Wheel 27 | . 28 25 Storage 28 | . 28 28 Ballistic Gun 26 | . 28 22 Ballistic Cannon 1 | . . 4 Naked Turns . | . . . Heaviest Build 70 | 15 70 70 Greatest Support 26 | 26 26 26 Greatest Overweight (x) 2 | . 2 2 Average Overweight (x) 1 | . 1 2 Largest Inventory Capacity 20 | 8 20 20 Average Capacity 17 | 5 16 20 Most Carried 20 | 6 20 20 Average Carried 15 | 2 14 19 Final Capacity 20 | 8 20 20 Final Carried 20 | 6 20 15 Class Distribution -------------------- 78% | Hauler-Mutant 21% | Mutant Dominant Class ---------------- Hauler-Mutant | -10/Materials Hauler-Mutant | -10/Mines Resources | -11 -10 -10 ----------- Run | Scr Mat Min Matter Collected 701 | 282 293 126 Remotely . | . . . Salvage Created 718 | 93 525 100 Parts 45 | 4 30 11 Haulers Intercepted 2 | . 2 . Recyclers Shooed 4 | . 4 . Parts Field Recycled . | . . . Retrieved Matter . | . . . Parts Self-Destructed . | . . . Prevented . | . . . Kills | -11 -10 -10 ------- Run | Scr Mat Min Combat Hostiles Destroyed 16 | . 6 10 Guns 8 | . 6 2 Cannons 6 | . . 6 AOE 2 | . . 2 Classes Destroyed 8 | 1 4 3 Worker 1 | . 1 . Tunneler 1 | . . 1 Hauler 2 | . 2 . Recycler 3 | 1 2 . Watcher 1 | . 1 . Swarmer 4 | . . 4 Grunt 6 | . 6 . Assembled 6 | . . 6 Best Kill Streak 6 | 1 3 6 Combat Bots Only 6 | . 2 6 Max Kills in Single Turn 1 | 1 1 1 Gunslinging . | . . . Exploded 1 | . . 1 Melee . | . . . Uniques/NPCs Destroyed . | . . . Combat | -11 -10 -10 -------- Run | Scr Mat Min Damage Taken 1052 | . 368 684 Core 259 | . 90 169 Absorbed by Shields . | . . . Core Remaining (%) 100 | 100 . . Volleys Fired 93 | 2 60 31 Largest 2 | 2 2 2 Hottest 70 | 40 40 70 Shots Fired 182 | 4 120 58 Gun 147 | 4 120 23 Cannon 31 | . . 31 Launcher 4 | . . 4 Special . | . . . Kinetic 178 | 4 120 54 Thermal . | . . . Explosive 4 | . . 4 Electromagnetic . | . . . Robot Hit Streak 14 | 1 14 10 Robot Miss Streak 6 | 2 6 3 Penetration Max . | . . . Secondary Targets . | . . . Shots Hit Robots 108 | 1 74 33 Core Hits 48 | 2 27 19 Critical Hits 1 | . . 1 Critical Kills 1 | . . 1 Critical Parts Destroyed . | . . . Melee Attacks . | . . . Impact . | . . . Slashing . | . . . Piercing . | . . . Sneak Attacks . | . . . Combat Hostiles . | . . . Follow-up Attacks . | . . . Damage Inflicted 1545 | 25 912 608 Guns 1075 | 25 912 138 Cannons 372 | . . 372 Explosions 98 | . . 98 Melee . | . . . Ramming . | . . . Kinetic 1447 | 25 912 510 Thermal . | . . . Explosive 98 | . . 98 Electromagnetic . | . . . Impact . | . . . Slashing . | . . . Piercing . | . . . Highest Corruption . | . . . Average Corruption . | . . . Corruption Purged . | . . . Overload Shots . | . . . Overflow Damage 6 | . . 6 Projectiles 6 | . . 6 Explosions . | . . . Melee . | . . . Knockbacks 6 | . . 6 Impact . | . . . Kinetic 4 | . . 4 Secondary 2 | . . 2 Self-Inflicted Damage 23 | . . 23 Shots 1 | . . 1 Rammed . | . . . Targets Rammed . | . . . Kicked . | . . . Crushed . | . . . Highest Temperature 124 | . 18 124 Average Temperature 34 | . 6 50 Received Heat Transfer 227 | . 207 20 Siege Activations . | . . . Robots Corrupted . | . . . Combat Hostiles . | . . . Parts Fried . | . . . Impact Corruptions . | . . . Robots Melted . | . . . Combat Hostiles . | . . . Parts Melted . | . . . Heat Transferred . | . . . Parts Sabotaged . | . . . Parts Stolen . | . . . Parts Stripped . | . . . Power Chain Reactions . | . . . Missiles Intercepted . | . . . Alert | -11 -10 -10 ------- Run | Scr Mat Min Peak Influence 205 | 5 179 205 Average Influence 68 | 1 66 81 Maximum Alert Level 1 | . . 1 Low Security (%) 97 | 100 100 92 Level 1 2 | . . 7 Level 2 . | . . . Level 3 . | . . . Level 4 . | . . . Level 5 . | . . . High Security . | . . . Max Security . | . . . Squads Dispatched 1 | . 1 . Investigation . | . . . Extermination . | . . . Reinforcement 1 | . 1 . Assault . | . . . Garrison . | . . . Intercept . | . . . Construction Impeded . | . . . Haulers Reinforced . | . . . Stealth | -11 -10 -10 --------- Run | Scr Mat Min Distress Signals 1 | . 1 . Communications Jammed . | . . . Distress Signals . | . . . Times Spotted 42 | . 20 22 Peak Tracking Total 12 | . 4 12 Tactical Retreats 5 | . 4 1 Traps | -11 -10 -10 ------- Run | Scr Mat Min Traps Triggered . | . . . Indirectly . | . . . Trap Hack Attempts . | . . . Triggered . | . . . Disarmed . | . . . Reprogrammed . | . . . Reused . | . . . Traps Extracted . | . . . Installed . | . . . Triggered . | . . . Machines | -11 -10 -10 ---------- Run | Scr Mat Min Machines Disabled . | . . . Max in Single Turn . | . . . Machines Sabotaged . | . . . Garrisons Compromised . | . . . Overloaded Fab Kills . | . . . Fab Network Shutdowns . | . . . Hacking | -11 -10 -10 --------- Run | Scr Mat Min Machines Accessed 7 | . 7 . Terminals 6 | . 6 . Fabricators . | . . . Repair Stations . | . . . Recycling Units 1 | . 1 . Scanalyzers . | . . . Garrison Access . | . . . Total Hacks 12 | . 12 . Successful 6 | . 6 . Failed 6 | . 6 . Catastrophic . | . . . Database Lockouts . | . . . Manual 10 | . 10 . Terminals 10 | . 10 . Fabricators . | . . . Repair Stations . | . . . Recycling Units 2 | . 2 . Scanalyzers . | . . . Garrison Access . | . . . Terminal Hacks 1 | . 1 . Zone Layout 1 | . 1 . Fabricator Hacks . | . . . Repair Station Hacks . | . . . Recycling Unit Hacks . | . . . Scanalyzer . | . . . Garrison Access Hacks . | . . . Unauthorized Hacks 12 | . 12 . Terminals 5 | . 5 . Track 2 | . 2 . Botnet 3 | . 3 . Fabricators . | . . . Repair Stations . | . . . Recycling Units . | . . . Scanalyzers . | . . . Garrison Access . | . . . Data Cores Recovered . | . . . Used . | . . . Hacking Detections 4 | . 4 . Full Trace Events . | . . . Feedback Events . | . . . Feedback Blocked . | . . . Robot Schematics Acquired . | . . . Robots Built . | . . . Matter . | . . . Time . | . . . Total Robot Build Rating . | . . . Part Schematics Acquired . | . . . Parts Built . | . . . Matter . | . . . Time . | . . . Total Part Build Rating . | . . . Parts Repaired . | . . . Time . | . . . Parts Recycled . | . . . Recycled Matter . | . . . Retrieved Matter . | . . . Retrieved Components . | . . . Parts Scanalyzed . | . . . Part Schematics Acquired . | . . . Parts Damaged . | . . . Bothacking | -11 -10 -10 ------------ Run | Scr Mat Min Used RIF Installer . | . . . Robots Hacked . | . . . Non-combat . | . . . Combat . | . . . Robot Hacks Applied . | . . . Relay Couplers Released . | . . . Robots Rewired . | . . . Allies Hacked . | . . . Hacks Repelled . | . . . Allies | -11 -10 -10 -------- Run | Scr Mat Min Total Allies 2 | . . 2 Largest Group 2 | . . 2 Highest-Rated Group 51 | . . 51 Highest-Rated Ally 31 | . . 31 Total Orders . | . . . Ally Attacks 19 | . . 19 Total Damage 351 | . . 351 Kills 6 | . . 6 Allies Corrupted . | . . . Allies Melted . | . . . Intel | -11 -10 -10 ------- Run | Scr Mat Min Robot Analysis Total . | . . . Derelict Logs Recovered . | . . . Drone Launches . | . . . Drone Recoveries . | . . . Exploration | -11 -10 -10 ------------- Run | Scr Mat Min Turns Passed 1405 | 62 960 383 Spaces Moved 946 | 45 640 261 Core 4 | 4 . . Treads . | . . . Legs . | . . . Wheels 942 | 41 640 261 Hover . | . . . Flight . | . . . Fastest Speed 50 | 50 90 110 Average Speed 106 | 87 106 110 Slowest Speed 110 | 100 110 110 Overloaded Moves . | . . . Propulsion Burnouts . | . . . Robots Hopped . | . . . Cave-ins Triggered . | . . . Exploration Rate (%) 48 | 3 93 50 Regions Visited 2 Branch Regions 1 Pre-discovered Areas . | . . . Known Exits Taken . | . . . Unknown Exits Taken 2 | 1 1 . Scrap Searched 1 | . . 1 Spaces Dug 3 | . . 3 Terrain Destroyed 14 | . . 14 Melee . | . . . Projectile . | . . . AOE 14 | . . 14 Actions | -11 -10 -10 --------- Run | Scr Mat Min Total 1169 | 59 809 301 Wait 84 | . 84 . Move 944 | 44 639 261 Hop . | . . . Pick Up 24 | 6 18 . Fast Attach 7 | 7 . . Attach 6 | . 1 5 Detach . | . . . Swap 6 | . 2 4 Drop 5 | . 5 . Fire 93 | 2 60 31 Melee . | . . . Ram . | . . . Kick . | . . . Crush . | . . . Escape Stasis . | . . . Rewire . | . . . Trap . | . . . Miscellaneous . | . . . Route ------- -11/Scrapyard -10/Materials (discovered 4 exits: [*Mat x2] / [*Min x2]) -10/Mines (discovered 1 exit: [*Mat]) History --------- Turn | Location | Event 7 | -11/Scrapyard | Discovered new exit (range 16) 63 | -11/Scrapyard | Entered Materials 332 | -10/Materials | Discovered new exit (range 16) 452 | -10/Materials | Discovered new exit (range 4) 601 | -10/Materials | Build established: Hauler-Mutant 806 | -10/Materials | Discovered new exit (range 8) 895 | -10/Materials | Discovered new exit (range 15) 1023 | -10/Materials | Entered Mines 1089 | -10/Mines | Discovered new exit (range 11) 1130 | -10/Mines | Deemed a non-threat by the Exiles lab entrance 1324 | -10/Mines | Assembled infested the area 1342 | -10/Mines | Core integrity fell below 50% 1387 | -10/Mines | Core integrity fell below 20% 1403 | -10/Mines | Lost 4 parts (2n2w) 1406 | -10/Mines | Destroyed by as-92209 with Assembled Heavy Rifle Last Messages --------------- 01347_ K-01 Serf collects debris. 01349_ as-20503 knocked back. 01351_ K-01 Serf collects debris. 01353_ Lgt. Assault Rifle destroyed. 01367_ Assault Rifle destroyed. 01369_ Wheel destroyed. 01372_ Com. Wheel destroyed. 01375_ as-21945 suffers critical hit. 01375_ as-21945 destroyed. 01378_ as-20503 destroyed. 01378_ as-53212 knocked back. 01379_ K-01 Serf collects debris. 01384_ as-02777 destroyed. 01388_ K-01 Serf destroyed. 01393_ as-06765 destroyed. 01396_ Destroyed Asb. Hover Unit. 01399_ as-53771 knocked back. 01399_ as-53771 destroyed. 01402_ as-30684 destroyed. 01402_ as-92209 knocked back. Map ----- +----------------------------------------------------+ | #?????????????????## ## ########## #???? | | #??####????????????# ## ###????????## ##???? | | #### ###??????????## ## #???????????####????? | | #?####??????## ## #???????????????????? | | ## ## #??????# ## #???????????????????? | | ### # ###???# ## #??#######??????????? | | #?## ## ##??# ## #??# #??????????? | | ##???####?# #### #??# #??????????? | | #??????????# ## ## #### #??????????? | | ???????????##### ### #??????????? | | ???????????????## ##?# #??????????? | | ????????????????# ##??## #### #??????????? | | ????????????????# #????#!#??# #??????????? | | ????????????????# #????# #??# #??????????? | | ????????????????# #????# #??# #??????????? | | ????????????????## ##????#%#??# #??????????? | | ?????????????????#####?????# #??# """ #??????????? | | ???????????????????????????# #??# """ #??????????? | | ???????????????????????????# #??# """ #??????????? | | ????????????###????????????# #??# #??????????? | | ????????????# ????????# #??# ? #??????????? | | ????????????# ### #??###??????????????? | | ???####?????# #??# #???????????????????? | | ??## #????# #??# ###### #???????????????????? | | ??# ##### #??????#######a#???????????????????? | | ??# ##?????#a%%@a[=#???????????????????? | | ??# #?????# #####=#???????????????????? | | ???# ####### #???# ??????????????????? | | ????# #???#####?????????????????? | | ?????# #########?????????????????????????? | | ?????## #?????????????????????????????????? | | ??????# * #?????????????????????????????????? | | ??????## #??????###????????????????????????? | | ???????## ##??? #???????????????????????? | | ????????# ## #??????????????????????? | | ????????### [ #??????????????????????? | | ????????## [ #???????????????????????? | | ??# ## ##???????????????????????? | | ?# %% ##????????????????????????? | | ## #?????????????????????????? | | #?# #?????????????????????????? | | *%! #?? #?????????????????????????? | | # #?? ##?????????????????????????? | | %! ######???#??????????????????????????? | | * ## ##???????????????????????????????????? | | ##?## ##????????????????????????????????????? | | #????####?????????????????????????????????????? | | #??????????????????????????????????????????????? | | ???????????????????????????????????????????????? | | ?????????????????????????????????????????????????? | +----------------------------------------------------+ Best States ------------- Heat Dissipation 25 Energy Generation 12 Energy Capacity 265 Matter Stores 300 Matter Capacity 300 Sight Range 16 Terrain Scan Density 10 Evasion (%) 42 Recoil Reduction 2 Item Schematics ----------------- None Robot Schematics ------------------ None Fabricated ------------ Nothing Alien Tech Used ----------------- None Achievements -------------- None Challenges ------------ None Game ------ Seed MiningNetworkDeconstructor Manual? 0 Play Time 00:10:44 Cumulative 973.9 hours Start 2020.03.21 @ 00:22:47 End 2020.03.21 @ 00:34:08 Sessions 1 Manual Loads 0 Difficulty Rogue Special Mode None Game No. 368 Rogue 368 Adventurer 0 Explorer 0 Win Type - Total 24 Types 13/1/7/0/0/0/3 Lore% 96 Gallery% 97 Achievement% 83 Wizard Run 0 Options --------- ASCII 0 Keyboard 0 Movement Vi Keybinds 0 Fullscreen 0 Font 12/Crisp Map View 76x50 Tactical HUD 1 Map Filters NONE Filters NONE Steam 1 RUN: 910ad3ca-191c-4b70-b4a4-1efca7f765ae